[Event "NJSK 2022 Jeugd C"]
[Site "Almelo, Netherlands"]
[Date "2022.05.03"]
[Round "3.4"]
[White "Kurt, Sascha"]
[Black "Van Arendonk, Polle"]
[Result "0-1"]
[TimeControl "90min + 30sec/move"]
[WhiteElo "1834"]
[BlackElo "1784"]

1. e4 {[%clk 01:30:57]} {[%emt 00:00:03]} e6 {[%clk 01:30:57]} {[%emt
00:00:04]} 2. d4 {[%clk 01:31:22]} {[%emt 00:00:05]} d5 {[%clk 01:31:23]}
{[%emt 00:00:04]} 3. Nd2 {[%clk 01:31:47]} {[%emt 00:00:05]} c5 {[%clk
01:31:48]} {[%emt 00:00:05]} 4. Ngf3 {[%clk 01:31:41]} {[%emt 00:00:36]} Nc6
{[%clk 01:31:53]} {[%emt 00:00:25]} 5. exd5 {[%clk 01:31:41]} {[%emt 00:00:30]}
Qxd5 {[%clk 01:32:08]} {[%emt 00:00:15]} 6. Bc4 {[%clk 01:30:54]} {[%emt
00:01:17]} Qd8 {[%clk 01:29:17]} {[%emt 00:03:21]} 7. Nb3 {[%clk 01:29:29]}
{[%emt 00:01:55]} cxd4 {[%clk 01:28:59]} {[%emt 00:00:48]} 8. Nbxd4 {[%clk
01:29:27]} {[%emt 00:00:31]} Nxd4 {[%clk 01:28:49]} {[%emt 00:00:40]} 9. Qxd4
{[%clk 01:29:35]} {[%emt 00:00:22]} Qxd4 {[%clk 01:29:01]} {[%emt 00:00:19]} 10.
Nxd4 {[%clk 01:29:59]} {[%emt 00:00:06]} Bd7 {[%clk 01:27:16]} {[%emt
00:02:15]} 11. O-O {[%clk 01:24:04]} {[%emt 00:06:25]} Rc8 {[%clk 01:24:55]}
{[%emt 00:02:51]} 12. Bd3 {[%clk 01:23:20]} {[%emt 00:01:13]} Nf6 {[%clk
01:14:28]} {[%emt 00:10:58]} 13. c4 {[%clk 01:16:45]} {[%emt 00:07:05]} Bd6
{[%clk 01:06:35]} {[%emt 00:08:23]} 14. h3 {[%clk 01:07:14]} {[%emt 00:10:01]}
O-O {[%clk 01:02:38]} {[%emt 00:04:27]} 15. Nb3 {[%clk 01:06:06]} {[%emt
00:01:38]} b6 {[%clk 00:55:51]} {[%emt 00:07:18]} 16. a4 {[%clk 01:00:47]}
{[%emt 00:05:48]} Bc6 {[%clk 00:33:43]} {[%emt 00:22:38]} 17. Nd2 {[%clk
00:47:18]} {[%emt 00:13:58]} Rfd8 {[%clk 00:29:20]} {[%emt 00:04:54]} 18. Be2
{[%clk 00:45:51]} {[%emt 00:01:56]} Bf4 {[%clk 00:26:14]} {[%emt 00:03:37]} 19.
Nf3 {[%clk 00:45:02]} {[%emt 00:01:18]} Bxc1 {[%clk 00:26:39]} {[%emt
00:00:05]} 20. Rfxc1 {[%clk 00:45:03]} {[%emt 00:00:30]} Bxf3 {[%clk 00:26:00]}
{[%emt 00:01:09]} 21. Bxf3 {[%clk 00:45:26]} {[%emt 00:00:06]} Rd4 {[%clk
00:25:53]} {[%emt 00:00:38]} 22. b3 {[%clk 00:45:06]} {[%emt 00:00:50]} a5
{[%clk 00:25:33]} {[%emt 00:00:50]} 23. Rd1 {[%clk 00:44:51]} {[%emt 00:00:45]}
Rcd8 {[%clk 00:25:54]} {[%emt 00:00:09]} 24. Rxd4 {[%clk 00:45:07]} {[%emt
00:00:15]} Rxd4 {[%emt 00:00:09]} 25. Rd1 {[%clk 00:45:31]} Rxd1+ {[%clk
00:26:39]} {[%emt 00:00:11]} 26. Bxd1 {[%clk 00:45:53]} {[%emt 00:00:08]} Kf8
{[%clk 00:26:34]} {[%emt 00:00:35]} 27. Bf3 {[%clk 00:46:16]} {[%emt 00:00:06]}
Nd7 {[%clk 00:26:45]} {[%emt 00:00:19]} 28. Kf1 {[%clk 00:46:08]} {[%emt
00:00:38]} Nc5 {[%clk 00:26:57]} {[%emt 00:00:18]} 29. Bd1 {[%clk 00:46:29]}
{[%emt 00:00:09]} Ke7 {[%clk 00:27:04]} {[%emt 00:00:23]} 30. Ke2 {[%clk
00:46:46]} {[%emt 00:00:12]} e5 {[%clk 00:24:11]} {[%emt 00:03:25]} 31. Bc2
{[%clk 00:45:50]} {[%emt 00:01:26]} Ke6 {[%clk 00:21:21]} {[%emt 00:03:21]} 32.
Kd2 {[%clk 00:44:37]} {[%emt 00:01:42]} f5 {[%clk 00:20:27]} {[%emt 00:01:25]}
33. Kc3 {[%clk 00:44:14]} {[%emt 00:00:52]} Na6 {[%clk 00:19:55]} {[%emt
00:01:02]} 34. Bd3 {[%clk 00:43:42]} {[%emt 00:01:00]} e4 {[%clk 00:19:10]}
{[%emt 00:01:17]} 35. Be2 {[%clk 00:43:59]} {[%emt 00:00:12]} Ke5 {[%clk
00:19:23]} {[%emt 00:00:18]} 36. g3 {[%clk 00:41:45]} {[%emt 00:02:44]} g5
{[%clk 00:19:01]} {[%emt 00:00:52]} 37. Bh5 {[%clk 00:38:38]} {[%emt 00:03:37]}
f4 {[%clk 00:18:33]} {[%emt 00:00:57]} 38. Be2 {[%clk 00:37:56]} {[%emt
00:01:12]} f3 {[%clk 00:17:10]} {[%emt 00:01:54]} 39. Bf1 {[%clk 00:36:13]}
{[%emt 00:02:12]} Nc5 {[%clk 00:10:11]} {[%emt 00:07:30]} 40. b4 {[%clk
00:30:12]} {[%emt 00:06:31]} Na6 {[%clk 00:08:52]} {[%emt 00:01:48]} 41. bxa5
{[%clk 00:29:06]} {[%emt 00:01:36]} bxa5 {[%clk 00:09:05]} {[%emt 00:00:17]} 42.
c5 {[%clk 00:27:34]} {[%emt 00:02:02]} Nxc5 {[%clk 00:09:26]} {[%emt 00:00:10]}
43. Bb5 {[%clk 00:27:53]} {[%emt 00:00:11]} Kd5 {[%clk 00:07:22]} {[%emt
00:02:35]} 44. Bc4+ {[%clk 00:27:41]} {[%emt 00:00:40]} Ke5 {[%clk 00:07:51]}
{[%emt 00:00:02]} 45. Bb5 {[%clk 00:28:02]} {[%emt 00:00:09]} h5 {[%clk
00:07:00]} {[%emt 00:01:21]} 46. Be8 {[%clk 00:27:26]} {[%emt 00:01:05]} Nd3
{[%clk 00:06:25]} {[%emt 00:01:06]} 47. Bxh5 {[%clk 00:26:08]} {[%emt
00:01:47]} Nxf2 {[%clk 00:06:51]} {[%emt 00:00:05]} 48. Kd2 {[%clk 00:25:58]}
{[%emt 00:00:39]} Nxh3 {[%clk 00:06:34]} {[%emt 00:00:48]} 49. Ke3 {[%clk
00:26:11]} {[%emt 00:00:15]} Ng1 {[%clk 00:06:41]} {[%emt 00:00:24]} 50. Bg6
{[%clk 00:26:19]} {[%emt 00:00:22]} g4 {[%clk 00:05:21]} {[%emt 00:01:51]} 51.
Bxe4 {[%clk 00:26:28]} {[%emt 00:00:20]} Ne2 {[%clk 00:04:12]} {[%emt
00:01:39]} 52. Bxf3 {[%clk 00:25:56]} {[%emt 00:01:02]} gxf3 {[%clk 00:04:34]}
{[%emt 00:00:08]} 53. Kxf3 {[%clk 00:26:21]} {[%emt 00:00:05]} Nc3 {[%clk
00:05:01]} {[%emt 00:00:03]} 54. Ke3 {[%clk 00:26:25]} {[%emt 00:00:27]} Nxa4
{[%clk 00:05:25]} {[%emt 00:00:06]} 55. Kd3 {[%clk 00:26:32]} {[%emt 00:00:24]}
Nb6 {[%clk 00:05:23]} {[%emt 00:00:31]} 56. Kc3 {[%clk 00:26:36]} {[%emt
00:00:26]} a4 {[%clk 00:05:52]} {[%emt 00:00:01]} 57. Kb4 {[%clk 00:26:50]}
{[%emt 00:00:15]} Kf5 {[%clk 00:06:13]} {[%emt 00:00:09]} 58. Ka3 {[%clk
00:27:08]} {[%emt 00:00:13]} Kg4 {[%clk 00:06:38]} {[%emt 00:00:04]} 59. Kb4
{[%clk 00:27:34]} {[%emt 00:00:05]} Kxg3 {[%clk 00:06:52]} {[%emt 00:00:15]} 60.
Ka3 {[%clk 00:28:04]} Kf3 {[%clk 00:07:15]} {[%emt 00:00:07]} 61. Kb4 {[%clk
00:28:26]} {[%emt 00:00:07]} Ke3 {[%clk 00:07:40]} {[%emt 00:00:05]} 62. Ka3
{[%clk 00:28:49]} {[%emt 00:00:08]} Kd3 {[%clk 00:08:06]} {[%emt 00:00:04]} 63.
Kb4 {[%clk 00:29:10]} {[%emt 00:00:08]} Kc2 {[%clk 00:08:16]} {[%emt 00:00:21]}
64. Ka3 {[%clk 00:29:34]} {[%emt 00:00:06]} Kb1 {[%clk 00:08:31]} {[%emt
00:00:14]} 65. Kb4 {[%clk 00:29:49]} {[%emt 00:00:15]} Kb2 {[%clk 00:08:50]}
{[%emt 00:00:11]} 66. Ka5 {[%clk 00:30:08]} {[%emt 00:00:11]} a3 {[%clk
00:09:14]} {[%emt 00:00:07]} 0-1

[Event "NJSK 2022 Jeugd C"]
[Site "Almelo, Netherlands"]
[Date "2022.05.03"]
[Round "3.5"]
[White "Kazarjan, Gachatur"]
[Black "Krylov, Philippe"]
[Result "1-0"]
[TimeControl "90min + 30sec/move"]
[WhiteElo "1661"]
[BlackElo "1817"]

1. e4 {[%clk 01:30:59]} {[%emt 00:00:01]} c6 {[%clk 01:31:00]} {[%emt
00:00:01]} 2. d4 {[%clk 01:31:22]} {[%emt 00:00:06]} d5 {[%clk 01:31:29]}
{[%emt 00:00:01]} 3. Nd2 {[%clk 01:31:47]} {[%emt 00:00:05]} dxe4 {[%clk
01:31:54]} {[%emt 00:00:05]} 4. Nxe4 {[%clk 01:32:13]} {[%emt 00:00:04]} Bf5
{[%clk 01:32:21]} {[%emt 00:00:03]} 5. Ng3 {[%clk 01:32:38]} {[%emt 00:00:05]}
Bg6 {[%clk 01:32:48]} {[%emt 00:00:03]} 6. h4 {[%clk 01:33:03]} {[%emt
00:00:05]} h6 {[%clk 01:33:15]} {[%emt 00:00:03]} 7. Nh3 {[%clk 01:33:29]}
{[%emt 00:00:04]} Nf6 {[%clk 01:33:41]} {[%emt 00:00:04]} 8. Nf4 {[%clk
01:33:55]} {[%emt 00:00:04]} Bh7 {[%clk 01:34:08]} {[%emt 00:00:03]} 9. c3
{[%clk 01:34:20]} {[%emt 00:00:05]} e6 {[%clk 01:34:08]} {[%emt 00:00:30]} 10.
Bd3 {[%clk 01:34:41]} {[%emt 00:00:09]} Bxd3 {[%clk 01:34:32]} {[%emt
00:00:06]} 11. Nxd3 {[%clk 01:35:07]} {[%emt 00:00:04]} Bd6 {[%clk 01:33:58]}
{[%emt 00:01:03]} 12. Qf3 {[%clk 01:35:01]} {[%emt 00:00:36]} Nbd7 {[%clk
01:33:42]} {[%emt 00:00:47]} 13. O-O {[%clk 01:35:14]} {[%emt 00:00:16]} Qc7
{[%clk 01:27:42]} {[%emt 00:06:31]} 14. Nh5 {[%clk 01:32:53]} {[%emt 00:02:51]}
Nxh5 {[%clk 01:20:11]} {[%emt 00:08:01]} 15. Qxh5 {[%clk 01:33:16]} {[%emt
00:00:06]} Nf6 {[%clk 01:20:34]} {[%emt 00:00:07]} 16. Qf3 {[%clk 01:33:26]}
{[%emt 00:00:20]} O-O {[%clk 01:12:00]} {[%emt 00:09:04]} 17. Bxh6 {[%clk
01:27:31]} {[%emt 00:06:25]} gxh6 {[%clk 01:12:21]} {[%emt 00:00:10]} 18. Qxf6
{[%clk 01:27:56]} {[%emt 00:00:05]} Kh7 {[%clk 01:12:44]} {[%emt 00:00:07]} 19.
Rfe1 {[%clk 01:27:43]} {[%emt 00:00:43]} Rg8 {[%clk 01:12:17]} {[%emt
00:00:57]} 20. Ne5 {[%clk 01:27:49]} {[%emt 00:00:24]} Rg7 {[%clk 01:10:59]}
{[%emt 00:01:48]} 21. g3 {[%clk 01:26:54]} {[%emt 00:01:24]} Rag8 {[%emt
00:00:43]} 22. Kg2 {[%emt 00:00:06]} Be7 {[%clk 01:04:43]} {[%emt 00:05:58]} 23.
Qf3 {[%clk 01:25:13]} {[%emt 00:02:10]} Bxh4 {[%clk 01:02:41]} {[%emt
00:02:33]} 24. Qe4+ {[%clk 01:25:35]} {[%emt 00:00:08]} f5 {[%clk 00:59:26]}
{[%emt 00:03:44]} 25. Qxh4 {[%clk 01:25:49]} {[%emt 00:00:16]} Rg5 {[%clk
00:59:05]} {[%emt 00:00:52]} 26. Rh1 {[%clk 01:26:04]} {[%emt 00:00:15]} Qg7
{[%clk 00:59:30]} {[%emt 00:00:04]} 27. Rh3 {[%clk 01:26:07]} {[%emt 00:00:27]}
f4 {[%clk 00:58:57]} {[%emt 00:01:04]} 28. Qxf4 {[%clk 01:26:30]} {[%emt
00:00:06]} Rf8 {[%clk 00:59:21]} {[%emt 00:00:07]} 29. Qe4+ {[%clk 01:26:52]}
{[%emt 00:00:08]} Kg8 {[%clk 00:59:43]} {[%emt 00:00:08]} 30. Rah1 {[%clk
01:27:15]} {[%emt 00:00:07]} Rgf5 {[%clk 00:59:39]} {[%emt 00:00:34]} 31. f3
{[%clk 01:27:26]} {[%emt 00:00:18]} Rg5 {[%clk 00:58:55]} {[%emt 00:01:15]} 32.
Ng4 {[%clk 01:27:38]} {[%emt 00:00:17]} 1-0

[Event "NJSK 2022 Jeugd C"]
[Site "Almelo, Netherlands"]
[Date "2022.05.03"]
[Round "3.6"]
[White "Terlouw, Wouter"]
[Black "Kumar, Prajit Sai"]
[Result "1/2-1/2"]
[TimeControl "90min + 30sec/move"]
[WhiteElo "1578"]
[BlackElo "2042"]

1. d4 {[%clk 01:30:54]} {[%emt 00:00:06]} d5 {[%clk 01:30:57]} {[%emt
00:00:04]} 2. c4 {[%clk 01:31:20]} {[%emt 00:00:04]} c6 {[%clk 01:31:26]} 3.
Nc3 {[%clk 01:31:43]} {[%emt 00:00:08]} Nf6 {[%clk 01:31:52]} {[%emt 00:00:04]}
4. Nf3 {[%clk 01:32:09]} {[%emt 00:00:05]} e6 {[%clk 01:32:17]} {[%emt
00:00:04]} 5. Bg5 {[%clk 01:32:35]} {[%emt 00:00:04]} Nbd7 {[%clk 01:32:42]}
{[%emt 00:00:05]} 6. e3 {[%clk 01:32:51]} {[%emt 00:00:14]} Qa5 {[%clk
01:33:08]} {[%emt 00:00:05]} 7. Nd2 {[%clk 01:33:15]} {[%emt 00:00:05]} Bb4
{[%clk 01:33:23]} {[%emt 00:00:15]} 8. Qc2 {[%clk 01:33:39]} {[%emt 00:00:06]}
dxc4 {[%clk 01:33:25]} {[%emt 00:00:27]} 9. Bxf6 {[%clk 01:33:59]} {[%emt
00:00:10]} Nxf6 {[%clk 01:33:52]} {[%emt 00:00:04]} 10. Nxc4 {[%clk 01:34:22]}
{[%emt 00:00:07]} Qc7 {[%clk 01:34:12]} {[%emt 00:00:10]} 11. a3 {[%clk
01:34:46]} {[%emt 00:00:06]} Be7 {[%clk 01:34:35]} {[%emt 00:00:07]} 12. b4
{[%clk 01:34:35]} {[%emt 00:00:42]} b6 {[%clk 01:34:58]} {[%emt 00:00:06]} 13.
Be2 {[%clk 01:33:42]} {[%emt 00:01:21]} O-O {[%clk 01:35:17]} {[%emt 00:00:12]}
14. O-O {[%clk 01:33:37]} {[%emt 00:00:36]} Ba6 {[%clk 01:35:35]} {[%emt
00:00:12]} 15. Ne5 {[%clk 01:29:18]} {[%emt 00:04:49]} Bxe2 {[%clk 01:35:18]}
{[%emt 00:00:47]} 16. Nxe2 {[%clk 01:29:03]} {[%emt 00:00:45]} Rfc8 {[%clk
01:35:00]} {[%emt 00:00:47]} 17. Rac1 {[%clk 01:25:15]} {[%emt 00:04:18]} c5
{[%clk 01:34:32]} {[%emt 00:00:59]} 18. bxc5 {[%clk 01:24:26]} {[%emt
00:01:19]} bxc5 {[%clk 01:34:56]} {[%emt 00:00:06]} 19. Nf3 {[%clk 01:21:57]}
{[%emt 00:02:57]} Qa5 {[%clk 01:33:45]} {[%emt 00:01:42]} 20. a4 {[%clk
01:13:16]} {[%emt 00:09:12]} h6 {[%clk 01:33:39]} {[%emt 00:00:36]} 21. Qa2
{[%clk 01:08:58]} {[%emt 00:04:46]} Nd5 {[%clk 01:32:35]} {[%emt 00:01:36]} 22.
dxc5 {[%clk 01:07:19]} {[%emt 00:02:09]} Bxc5 {[%clk 01:32:56]} {[%emt
00:00:08]} 23. Rc4 {[%clk 01:00:02]} {[%emt 00:07:47]} Rc7 {[%clk 01:29:41]}
{[%emt 00:03:45]} 24. Rfc1 {[%clk 00:59:43]} {[%emt 00:00:49]} Rac8 {[%clk
01:30:04]} {[%emt 00:00:07]} 25. h3 {[%clk 00:57:00]} {[%emt 00:03:14]} Nxe3
{[%clk 01:28:40]} {[%emt 00:01:54]} 26. Rxc5 {[%clk 00:54:06]} {[%emt
00:03:24]} Rxc5 {[%clk 01:29:04]} {[%emt 00:00:06]} 27. Rxc5 {[%clk 00:54:17]}
{[%emt 00:00:19]} Qxc5 {[%clk 01:29:27]} {[%emt 00:00:06]} 28. fxe3 {[%clk
00:54:25]} {[%emt 00:00:22]} Qxe3+ {[%clk 01:29:55]} {[%emt 00:00:02]} 29. Kh2
{[%clk 00:53:24]} {[%emt 00:01:16]} Qe4 {[%clk 01:29:15]} {[%emt 00:01:26]} 30.
Ng3 {[%clk 00:50:04]} {[%emt 00:03:49]} Qf4 {[%clk 01:29:14]} {[%emt 00:00:31]}
31. Qb3 {[%clk 00:48:48]} {[%emt 00:01:44]} h5 {[%clk 01:29:22]} {[%emt
00:00:24]} 32. Qb7 {[%clk 00:42:56]} {[%emt 00:06:23]} Qc7 {[%clk 01:29:43]}
{[%emt 00:00:09]} 33. Qxc7 {[%clk 00:42:45]} {[%emt 00:00:41]} Rxc7 {[%clk
01:30:07]} {[%emt 00:00:06]} 34. Ne5 {[%clk 00:41:22]} {[%emt 00:01:50]} Rc5
{[%clk 01:30:13]} {[%emt 00:00:27]} 35. Nd3 {[%clk 00:39:58]} {[%emt 00:01:54]}
Rc4 {[%clk 01:30:40]} {[%emt 00:00:03]} 36. Ne2 {[%clk 00:35:28]} {[%emt
00:05:00]} Rxa4 {[%clk 01:31:02]} {[%emt 00:00:08]} 37. Kg1 {[%clk 00:33:18]}
{[%emt 00:02:38]} Ra2 {[%clk 01:31:30]} {[%emt 00:00:03]} 38. Ndc1 {[%clk
00:32:35]} {[%emt 00:01:14]} Rc2 {[%clk 01:31:50]} {[%emt 00:00:10]} 39. Kf2
{[%clk 00:32:39]} {[%emt 00:00:25]} a5 {[%clk 01:32:03]} {[%emt 00:00:17]} 40.
Ke3 {[%clk 00:31:10]} {[%emt 00:01:59]} e5 {[%clk 01:32:25]} {[%emt 00:00:08]}
41. Kd3 {[%clk 00:31:24]} {[%emt 00:00:16]} Rc5 {[%clk 01:32:31]} {[%emt
00:00:24]} 42. Nb3 {[%clk 00:29:43]} {[%emt 00:02:12]} Rb5 {[%clk 01:32:59]}
{[%emt 00:00:02]} 43. Kc4 {[%clk 00:29:31]} {[%emt 00:00:42]} Rb4+ {[%clk
01:33:27]} {[%emt 00:00:02]} 44. Kc3 {[%clk 00:29:49]} {[%emt 00:00:12]} Ra4
{[%clk 01:33:52]} {[%emt 00:00:05]} 45. Ng3 {[%clk 00:27:28]} {[%emt 00:02:51]}
g6 {[%clk 01:34:14]} {[%emt 00:00:07]} 46. Nf1 {[%clk 00:25:03]} {[%emt
00:02:56]} Ra3 {[%clk 01:32:45]} {[%emt 00:01:58]} 47. Kb2 {[%clk 00:24:16]}
{[%emt 00:01:18]} Ra4 {[%clk 01:33:12]} {[%emt 00:00:02]} 48. Kc3 {[%clk
00:24:31]} {[%emt 00:00:16]} Ra2 {[%clk 01:32:40]} {[%emt 00:01:02]} 49. Nfd2
{[%clk 00:22:43]} {[%emt 00:02:18]} a4 {[%clk 01:32:56]} {[%emt 00:00:14]} 50.
Nc5 {[%clk 00:20:41]} {[%emt 00:02:32]} h4 {[%clk 01:31:05]} {[%emt 00:02:20]}
51. Nd3 {[%clk 00:14:11]} {[%emt 00:07:00]} f6 {[%clk 01:30:21]} {[%emt
00:01:15]} 52. Ne1 {[%clk 00:10:07]} {[%emt 00:04:33]} g5 {[%clk 01:30:26]}
{[%emt 00:00:25]} 53. Nc2 {[%clk 00:10:00]} {[%emt 00:00:38]} Kf7 {[%clk
01:30:06]} {[%emt 00:00:50]} 54. Ne4 {[%clk 00:09:22]} {[%emt 00:01:08]} Kg6
{[%clk 01:27:22]} {[%emt 00:03:14]} 55. Nc5 {[%clk 00:07:51]} {[%emt 00:02:01]}
f5 {[%emt 00:01:12]} 56. Nd3 {[%clk 00:07:34]} e4 {[%clk 01:27:28]} {[%emt
00:00:28]} 57. Ndb4 {[%clk 00:07:39]} {[%emt 00:00:25]} Rxc2+ {[%clk 01:27:57]}
{[%emt 00:00:01]} 58. Nxc2 {[%clk 00:07:36]} {[%emt 00:00:33]} g4 {[%clk
01:28:21]} {[%emt 00:00:06]} 59. Kb4 {[%clk 00:06:59]} {[%emt 00:01:08]} Kg5
{[%clk 01:28:11]} {[%emt 00:00:39]} 60. Kxa4 {[%clk 00:06:53]} {[%emt
00:00:37]} gxh3 {[%clk 01:28:37]} {[%emt 00:00:04]} 61. gxh3 {[%clk 00:07:07]}
{[%emt 00:00:16]} f4 {[%clk 01:29:03]} {[%emt 00:00:04]} 62. Kb4 {[%clk
00:07:06]} {[%emt 00:00:31]} f3 {[%clk 01:29:13]} {[%emt 00:00:20]} 63. Kc4
{[%clk 00:07:17]} {[%emt 00:00:19]} f2 {[%clk 01:29:26]} {[%emt 00:00:17]} 64.
Ne3 {[%clk 00:07:37]} {[%emt 00:00:09]} Kf4 {[%clk 01:29:53]} {[%emt 00:00:03]}
65. Kd4 {[%clk 00:07:55]} {[%emt 00:00:13]} Kf3 {[%clk 01:30:21]} {[%emt
00:00:01]} 66. Nf1 {[%clk 00:07:25]} {[%emt 00:01:00]} Kg2 {[%clk 01:30:19]}
{[%emt 00:00:33]} 67. Ne3+ {[%clk 00:07:40]} {[%emt 00:00:15]} Kxh3 {[%clk
01:30:42]} {[%emt 00:00:06]} 68. Kxe4 {[%clk 00:07:48]} {[%emt 00:00:23]} Kg3
{[%clk 01:31:10]} {[%emt 00:00:02]} 69. Kd3 {[%clk 00:06:59]} {[%emt 00:01:19]}
Kf3 {[%clk 01:31:37]} {[%emt 00:00:02]} 70. Nf1 {[%clk 00:06:58]} {[%emt
00:00:32]} h3 {[%clk 01:31:51]} {[%emt 00:00:16]} 71. Nh2 {[%clk 00:07:04]}
{[%emt 00:00:24]} Kg2 {[%clk 01:32:16]} {[%emt 00:00:03]} 72. Ke2 {[%clk
00:07:28]} {[%emt 00:00:07]} 1/2-1/2

[Event "NJSK 2022 Jeugd C"]
[Site "Almelo, Netherlands"]
[Date "2022.05.03"]
[Round "3.7"]
[White "Madularea, David"]
[Black "Mohebbinezhad, Parsa"]
[Result "1-0"]
[TimeControl "90min + 30sec/move"]
[WhiteElo "1774"]
[BlackElo "1600"]

1. e4 {[%clk 01:30:55]} {[%emt 00:00:04]} c6 {[%clk 01:30:54]} {[%emt
00:00:07]} 2. d4 {[%clk 01:31:17]} {[%emt 00:00:07]} d5 {[%clk 01:31:22]}
{[%emt 00:00:03]} 3. e5 {[%clk 01:31:31]} {[%emt 00:00:16]} Bf5 {[%clk
01:31:44]} {[%emt 00:00:08]} 4. h4 {[%clk 01:31:44]} {[%emt 00:00:17]} h6
{[%clk 01:31:55]} {[%emt 00:00:19]} 5. Bd3 {[%clk 01:32:03]} {[%emt 00:00:10]}
Bxd3 {[%clk 01:32:18]} {[%emt 00:00:08]} 6. Qxd3 {[%clk 01:32:27]} {[%emt
00:00:06]} e6 {[%clk 01:32:43]} {[%emt 00:00:05]} 7. h5 {[%clk 01:32:41]}
{[%emt 00:00:16]} Qb6 {[%clk 01:32:54]} {[%emt 00:00:19]} 8. Ne2 {[%clk
01:31:31]} {[%emt 00:01:37]} c5 {[%clk 01:32:50]} {[%emt 00:00:36]} 9. c3
{[%clk 01:31:18]} {[%emt 00:00:42]} Nc6 {[%clk 01:32:55]} {[%emt 00:00:26]} 10.
a3 {[%clk 01:26:05]} {[%emt 00:05:43]} cxd4 {[%clk 01:26:43]} {[%emt 00:06:42]}
11. cxd4 {[%clk 01:26:11]} {[%emt 00:00:24]} Nge7 {[%clk 01:26:30]} {[%emt
00:00:44]} 12. g4 {[%clk 01:15:25]} {[%emt 00:11:16]} Na5 {[%clk 01:23:42]}
{[%emt 00:03:18]} 13. Nd2 {[%clk 01:13:13]} {[%emt 00:02:41]} a6 {[%clk
01:20:56]} {[%emt 00:03:17]} 14. b4 {[%clk 01:04:51]} {[%emt 00:08:52]} Nac6
{[%clk 01:20:35]} {[%emt 00:00:51]} 15. Bb2 {[%clk 00:59:12]} {[%emt 00:06:08]}
Nc8 {[%clk 01:19:56]} {[%emt 00:01:10]} 16. Nb3 {[%clk 00:49:48]} {[%emt
00:09:54]} N8a7 {[%clk 01:19:11]} {[%emt 00:01:15]} 17. Nc3 {[%clk 00:45:15]}
{[%emt 00:05:02]} a5 {[%clk 01:09:43]} {[%emt 00:09:59]} 18. b5 {[%clk
00:36:35]} {[%emt 00:09:09]} a4 {[%clk 01:09:07]} {[%emt 00:01:06]} 19. Nc1
{[%clk 00:17:53]} {[%emt 00:19:12]} Nxd4 {[%clk 01:03:18]} {[%emt 00:06:19]} 20.
Nxa4 {[%clk 00:16:46]} {[%emt 00:01:37]} Qa5+ {[%clk 01:00:46]} {[%emt
00:03:02]} 21. Nc3 {[%clk 00:17:08]} {[%emt 00:00:08]} Ndxb5 {[%clk 01:00:16]}
{[%emt 00:01:00]} 22. Nb3 {[%clk 00:17:12]} {[%emt 00:00:27]} Qa6 {[%clk
00:59:14]} {[%emt 00:01:32]} 23. O-O {[%clk 00:15:00]} {[%emt 00:02:41]} Nxc3
{[%clk 00:59:08]} {[%emt 00:00:36]} 24. Qxc3 {[%clk 00:15:22]} {[%emt
00:00:08]} Nb5 {[%clk 00:58:23]} {[%emt 00:01:16]} 25. Qd2 {[%clk 00:14:15]}
{[%emt 00:01:36]} Bxa3 {[%clk 00:57:25]} {[%emt 00:01:29]} 26. Bxa3 {[%clk
00:13:55]} {[%emt 00:00:50]} Nxa3 {[%clk 00:57:41]} {[%emt 00:00:14]} 27. Nc5
{[%clk 00:13:04]} {[%emt 00:01:21]} Qc4 {[%clk 00:51:13]} {[%emt 00:06:58]} 28.
Rfc1 {[%clk 00:11:04]} {[%emt 00:02:30]} Qxg4+ {[%clk 00:51:03]} {[%emt
00:00:39]} 29. Kf1 {[%clk 00:11:20]} {[%emt 00:00:13]} Qh3+ {[%clk 00:50:50]}
{[%emt 00:00:45]} 30. Kg1 {[%clk 00:11:30]} {[%emt 00:00:19]} b6 {[%clk
00:48:42]} {[%emt 00:02:39]} 31. Rc3 {[%clk 00:10:23]} {[%emt 00:01:37]} Qg4+
{[%clk 00:25:56]} {[%emt 00:23:16]} 32. Rg3 {[%clk 00:10:48]} {[%emt 00:00:04]}
Qxg3+ {[%clk 00:26:13]} {[%emt 00:00:14]} 33. fxg3 {[%clk 00:10:59]} {[%emt
00:00:18]} bxc5 {[%clk 00:26:34]} {[%emt 00:00:09]} 34. Qc1 {[%clk 00:10:47]}
{[%emt 00:00:42]} O-O {[%clk 00:26:41]} {[%emt 00:00:23]} 35. Rxa3 {[%clk
00:11:11]} {[%emt 00:00:06]} Rac8 {[%clk 00:19:51]} {[%emt 00:07:20]} 36. Rc3
{[%clk 00:10:59]} {[%emt 00:00:42]} c4 {[%clk 00:19:35]} {[%emt 00:00:47]} 37.
Kf2 {[%clk 00:11:11]} {[%emt 00:00:17]} Rfd8 {[%clk 00:19:47]} {[%emt
00:00:18]} 38. g4 {[%clk 00:11:19]} {[%emt 00:00:22]} f6 {[%clk 00:14:30]}
{[%emt 00:05:47]} 39. exf6 {[%clk 00:10:10]} {[%emt 00:01:40]} e5 {[%clk
00:14:39]} {[%emt 00:00:20]} 40. fxg7 {[%clk 00:09:47]} {[%emt 00:00:53]} Kxg7
{[%clk 00:14:48]} {[%emt 00:00:21]} 41. g5 {[%clk 00:09:21]} {[%emt 00:00:56]}
d4 {[%clk 00:08:59]} {[%emt 00:06:19]} 42. gxh6+ {[%clk 00:07:25]} {[%emt
00:02:26]} Kf8 {[%clk 00:03:49]} {[%emt 00:05:41]} 43. Qg5 {[%clk 00:05:51]}
{[%emt 00:02:03]} Kf7 {[%clk 00:02:57]} {[%emt 00:01:22]} 44. Qf5+ {[%clk
00:06:06]} {[%emt 00:00:15]} Ke7 {[%clk 00:03:02]} {[%emt 00:00:26]} 45. Qxe5+
{[%clk 00:06:24]} {[%emt 00:00:11]} Kf7 {[%clk 00:03:26]} {[%emt 00:00:06]} 46.
Rf3+ {[%clk 00:06:49]} {[%emt 00:00:05]} 1-0